fUST/lending_fUST_20250107
["ID","MTS","AMOUNT","RATE_DAILY","PERIOD"]
[347935964,1736224243265,-389.555747,0.00019178,2]
[347935966,1736224243274,-389.555747,0.00019178,2]
[347935968,1736224243283,-389.555747,0.00019178,2]
[347935970,1736224243292,-389.555747,0.00019178,2]
[347935972,1736224243301,-389.555747,0.00019178,2]
[347935974,1736224243311,-389.555747,0.00019178,2]
[347935976,1736224243320,-389.555747,0.00019178,2]
[347935978,1736224243329,-235.44173057,0.00019178,2]
[347935980,1736224243339,-500.0,0.00019178,2]
[347935982,1736224243348,-500.0,0.00019178,2]
[347935984,1736224243357,-510.46628294,0.00019178,2]
[347935986,1736224243366,-500.0,0.00019178,2]
[347935988,1736224243375,-151.0,0.00019178,2]
[347935990,1736224243384,-151.0,0.00019178,2]
[347935992,1736224243394,-151.0,0.00019178,2]
[347935994,1736224243403,-185.925617,0.00019178,2]
[347935996,1736224243412,-398.46889614,0.00019178,2]
[347935998,1736224243422,-500.0,0.00019178,2]
[347936000,1736224243431,-500.0,0.00019178,2]
[347936002,1736224243440,-503.17095204,0.00019178,2]
[347936004,1736224243450,-500.0,0.00019178,2]
[347936006,1736224243459,-500.0,0.00019178,2]
[347936008,1736224243468,-503.69063038,0.00019178,2]
[347936010,1736224243477,-500.0,0.00019178,2]
[347936012,1736224243485,-500.0,0.00019178,2]
[347936014,1736224243495,-504.16,0.00019178,2]
[347936016,1736224243503,-151.0,0.00019178,2]
[347936018,1736224243513,-151.0,0.00019178,2]
[347936020,1736224243530,-151.0,0.00019178,2]
[347936022,1736224243539,-151.0,0.00019178,2]
[347936024,1736224243548,-151.0,0.00019178,2]
[347936026,1736224243557,-151.0,0.00019178,2]
[347936028,1736224243566,-151.0,0.00019178,2]
[347936030,1736224243575,-151.0,0.00019178,2]
[347936032,1736224243584,-500.0,0.00019178,2]
[347936034,1736224243594,-151.0,0.00019178,2]
[347936035,1736224243603,-500.0,0.00019178,2]
[347936037,1736224243612,-151.0,0.00019178,2]
[347936039,1736224243621,-500.0,0.00019178,2]
[347936041,1736224243631,-272.731368,0.00019178,2]
[347936044,1736224243640,-500.0,0.00019178,2]
[347936046,1736224243649,-500.0,0.00019178,2]
[347936048,1736224243658,-500.0,0.00019178,2]
[347936050,1736224243667,-500.0,0.00019178,2]
[347936052,1736224243677,-500.0,0.00019178,2]
[347936054,1736224243686,-500.0,0.00019178,2]
[347936056,1736224243695,-500.0,0.00019178,2]
[347936058,1736224243704,-500.0,0.00019178,2]
[347936060,1736224243713,-500.0,0.00019178,2]
[347936062,1736224243722,-500.0,0.00019178,2]
[347936064,1736224243732,-500.0,0.00019178,2]
[347936066,1736224243741,-500.0,0.00019178,2]
[347936067,1736224243751,-500.0,0.00019178,2]
[347936069,1736224243760,-578.5568121,0.00019178,2]
[347936071,1736224243770,-500.0,0.00019178,2]
[347936073,1736224243779,-500.0,0.00019178,2]
[347936076,1736224243789,-500.0,0.00019178,2]
[347936078,1736224243798,-303.65679293,0.00019178,2]
[347936080,1736224243807,-500.0,0.00019178,2]
[347936081,1736224243816,-500.0,0.00019178,2]
[347936082,1736224243825,-500.0,0.00019178,2]
[347936083,1736224243835,-500.0,0.00019178,2]
[347936085,1736224243844,-500.0,0.00019178,2]
[347936087,1736224243853,-500.0,0.00019178,2]
[347936089,1736224243862,-500.0,0.00019178,2]
[347936091,1736224243874,-500.0,0.00019178,2]
[347936093,1736224243883,-500.0,0.00019178,2]
[347936095,1736224243893,-500.0,0.00019178,2]
[347936099,1736224243915,-500.0,0.00019178,2]
[347936101,1736224243926,-500.0,0.00019178,2]
[347936103,1736224243936,-500.0,0.00019178,2]
[347936105,1736224243946,-500.0,0.00019178,2]
[347936107,1736224243956,-500.0,0.00019178,2]
[347936109,1736224243966,-500.0,0.00019178,2]
[347936111,1736224243976,-500.0,0.00019178,2]
[347936113,1736224243985,-500.0,0.00019178,2]
[347936115,1736224243995,-500.0,0.00019178,2]
[347936117,1736224244004,-500.0,0.00019178,2]
[347936119,1736224244014,-500.0,0.00019178,2]
[347936120,1736224244023,-500.0,0.00019178,2]
[347936121,1736224244033,-500.0,0.00019178,2]
[347936122,1736224244043,-500.0,0.00019178,2]
[347936123,1736224244052,-500.0,0.00019178,2]
[347936124,1736224244062,-292.1864516,0.00019178,2]
[347936125,1736224244071,-535.83,0.00019178,2]
[347936126,1736224244081,-500.0,0.00019178,2]
[347936127,1736224244090,-3709.41,0.00019178,2]
[347936128,1736224244100,-500.0,0.00019178,2]
[347936129,1736224244111,-500.0,0.00019178,2]
[347936130,1736224244121,-505.39622137,0.00019178,2]
[347936131,1736224244131,-500.0,0.00019178,2]
[347936132,1736224244141,-500.0,0.00019178,2]
[347936133,1736224244151,-500.0,0.00019178,2]
[347936134,1736224244160,-687.89,0.00019178,2]
[347936135,1736224244170,-238.2727776,0.00019178,2]
[347936136,1736224244180,-500.0,0.00019178,2]
[347936137,1736224244189,-502.96985578,0.00019178,2]
[347936138,1736224244199,-500.0,0.00019178,2]
[347936139,1736224244208,-500.0,0.00019178,2]
[347936141,1736224244218,-263.998369,0.00019178,2]
[347936143,1736224244227,-263.998369,0.00019178,2]
[347936145,1736224244236,-500.0,0.00019178,2]
[347936147,1736224244245,-263.998369,0.00019178,2]
[347936149,1736224244255,-263.998369,0.00019178,2]
[347936151,1736224244264,-263.998369,0.00019178,2]
[347936153,1736224244274,-263.998369,0.00019178,2]
[347936156,1736224244284,-263.998369,0.00019178,2]
[347936158,1736224244293,-263.998369,0.00019178,2]
[347936160,1736224244302,-263.998369,0.00019178,2]
[347936161,1736224244311,-263.998369,0.00019178,2]
[347936164,1736224244321,-263.998369,0.00019178,2]
[347936166,1736224244331,-263.998369,0.00019178,2]
[347936168,1736224244340,-263.998369,0.00019178,2]
[347936169,1736224244349,-263.998369,0.00019178,2]
[347936170,1736224244358,-263.998369,0.00019178,2]
[347936172,1736224244367,-502.00305595,0.00019178,2]
[347936174,1736224244376,-263.998369,0.00019178,2]
[347936176,1736224244389,-263.998369,0.00019178,2]
[347936178,1736224244399,-263.998369,0.00019178,2]
[347936180,1736224244408,-500.0,0.00019178,2]
[347936182,1736224244417,-502.77342181,0.00019178,2]
[347936184,1736224244426,-502.63689688,0.00019178,2]
[347936186,1736224244437,-500.0,0.00019178,2]
[347936188,1736224244446,-500.0,0.00019178,2]
[347936190,1736224244456,-503.38216554,0.00019178,2]
[347936191,1736224244465,-818.27,0.00019178,2]
[347936193,1736224244473,-595.57462217,0.00019178,2]
[347936195,1736224244482,-500.0,0.00019178,2]
[347936197,1736224244491,-536.23658365,0.00019178,2]
[347936199,1736224244500,-500.0,0.00019178,2]
[347936201,1736224244509,-500.0,0.00019178,2]
[347936203,1736224244520,-406.94409936,0.00019178,2]
[347936205,1736224244531,-733.35,0.00019178,2]
[347936207,1736224244540,-500.0,0.00019178,2]
[347936209,1736224244549,-500.0,0.00019178,2]
[347936211,1736224244558,-500.0,0.00019178,2]
[347936213,1736224244569,-500.0,0.00019178,2]
[347936215,1736224244578,-500.0,0.00019178,2]
[347936217,1736224244588,-500.0,0.00019178,2]
[347936219,1736224244597,-500.0,0.00019178,2]
[347936221,1736224244607,-500.0,0.00019178,2]
[347936223,1736224244617,-500.0,0.00019178,2]
[347936225,1736224244627,-500.0,0.00019178,2]
[347936227,1736224244636,-500.0,0.00019178,2]
[347936229,1736224244647,-500.0,0.00019178,2]
[347936231,1736224244656,-502.85864142,0.00019178,2]
[347936233,1736224244665,-504.69445165,0.00019178,2]
[347936235,1736224244675,-836.2,0.00019178,2]
[347936237,1736224244685,-151.0,0.00019178,2]
[347936239,1736224244694,-151.0,0.00019178,2]
[347936241,1736224244703,-151.0,0.00019178,2]
[347936243,1736224244713,-2333.13,0.00019178,2]
[347936245,1736224244722,-151.0,0.00019178,2]
[347936247,1736224244731,-159.459981,0.00019178,2]
[347936249,1736224244740,-500.0,0.00019178,2]
[347936250,1736224244750,-500.0,0.00019178,2]
[347936251,1736224244759,-497.41640805,0.00019178,2]
[347936253,1736224244769,-500.0,0.00019178,2]
[347936255,1736224244778,-500.0,0.00019178,2]
[347936257,1736224244787,-500.0,0.00019178,2]
[347936259,1736224244797,-500.0,0.00019178,2]
[347936261,1736224244806,-228.40117152,0.00019178,2]
[347936262,1736224244816,-2284.37,0.00019178,2]
[347936263,1736224244825,-151.0,0.00019178,2]
[347936264,1736224244834,-151.0,0.00019178,2]
[347936266,1736224244843,-317.01916023,0.00019178,2]
[347936268,1736224244853,-151.0,0.00019178,2]
[347936270,1736224244862,-151.0,0.00019178,2]
[347936272,1736224244873,-151.0,0.00019178,2]
[347936275,1736224244882,-500.0,0.00019178,2]
[347936277,1736224244894,-164.055935,0.00019178,2]
[347936279,1736224244903,-500.0,0.00019178,2]
[347936281,1736224244914,-500.0,0.00019178,2]
[347936283,1736224244923,-500.0,0.00019178,2]
[347936285,1736224244934,-500.0,0.00019178,2]
[347936287,1736224244943,-500.0,0.00019178,2]
[347936289,1736224244953,-2150.09,0.00019178,2]
[347936291,1736224244962,-545.41,0.00019178,2]
[347936293,1736224244972,-506.26229847,0.00019178,2]
[347936295,1736224244981,-500.0,0.00019178,2]
[347936297,1736224244991,-464.22033059,0.00019178,2]
[347936299,1736224245000,-506.31290415,0.00019178,2]
[347936301,1736224245009,-502.98835502,0.00019178,2]
[347936303,1736224245019,-500.0,0.00019178,2]
[347936305,1736224245028,-657.39,0.00019178,2]
[347936307,1736224245038,-505.38733839,0.00019178,2]
[347936309,1736224245047,-500.0,0.00019178,2]
[347936311,1736224245057,-500.0,0.00019178,2]
[347936313,1736224245066,-505.56067658,0.00019178,2]
[347936315,1736224245076,-500.0,0.00019178,2]
[347936317,1736224245085,-500.0,0.00019178,2]
[347936319,1736224245095,-500.0,0.00019178,2]
[347936321,1736224245104,-500.0,0.00019178,2]
[347936323,1736224245114,-500.0,0.00019178,2]
[347936325,1736224245123,-194.68108411,0.00019178,2]
[347936327,1736224245134,-505.85535658,0.00019178,2]
[347936329,1736224245143,-500.0,0.00019178,2]
[347936331,1736224245153,-509.74865135,0.00019178,2]
[347936333,1736224245163,-500.0,0.00019178,2]
[347936335,1736224245172,-500.0,0.00019178,2]
[347936337,1736224245182,-172.31578844,0.00019178,2]
[347936339,1736224245191,-500.0,0.00019178,2]
[347936341,1736224245203,-500.0,0.00019178,2]
[347936343,1736224245215,-432.48623747,0.00019178,2]
[347936345,1736224245225,-500.0,0.00019178,2]
[347936346,1736224245235,-508.70532279,0.00019178,2]
[347936349,1736224245244,-505.63059931,0.00019178,2]
[347936350,1736224245254,-500.0,0.00019178,2]
[347936353,1736224245264,-500.0,0.00019178,2]
[347936369,1736224245411,-500.0,0.00019178,2]
[347936372,1736224245421,-1394.44,0.00019178,2]
[347936374,1736224245431,-500.0,0.00019178,2]
[347936376,1736224245440,-500.0,0.00019178,2]
[347936378,1736224245449,-503.42512457,0.00019178,2]
[347936380,1736224245458,-506.09718535,0.00019178,2]
[347936382,1736224245467,-504.96388799,0.00019178,2]
[347936384,1736224245476,-500.0,0.00019178,2]
[347936386,1736224245485,-500.0,0.00019178,2]
[347936388,1736224245494,-500.0,0.00019178,2]
[347936390,1736224245503,-503.1661269,0.00019178,2]
[347936392,1736224245513,-1537.17,0.00019178,2]
[347936394,1736224245525,-1537.17,0.00019178,2]
[347936396,1736224245535,-860.83,0.00019178,2]
[347936398,1736224245544,-1537.17,0.00019178,2]
[347936400,1736224245553,-1537.17,0.00019178,2]
[347936402,1736224245562,-1537.17,0.00019178,2]
[347936404,1736224245571,-1537.17,0.00019178,2]
[347936406,1736224245580,-1537.17,0.00019178,2]
[347936408,1736224245589,-1537.17,0.00019178,2]
[347936410,1736224245599,-1537.17,0.00019178,2]
[347936412,1736224245608,-500.0,0.00019178,2]
[347936414,1736224245617,-1537.17,0.00019178,2]
[347936416,1736224245626,-1537.17,0.00019178,2]
[347936418,1736224245637,-500.0,0.00019178,2]
[347936420,1736224245646,-500.0,0.00019178,2]
[347936422,1736224245655,-1537.17,0.00019178,2]
[347936424,1736224245664,-503.22073834,0.00019178,2]
[347936426,1736224245673,-1875.17,0.00019178,2]
[347936428,1736224245683,-1537.17,0.00019178,2]
[347936430,1736224245692,-1537.17,0.00019178,2]
[347936432,1736224245702,-1537.17,0.00019178,2]
[347936434,1736224245711,-1537.17,0.00019178,2]
[347936436,1736224245720,-1537.17,0.00019178,2]
[347936438,1736224245729,-1537.17,0.00019178,2]
[347936440,1736224245738,-696.85,0.00019178,2]
[347936442,1736224245747,-500.0,0.00019178,2]
[347936444,1736224245757,-1537.17,0.00019178,2]
[347936446,1736224245767,-504.31950741,0.00019178,2]
[347936448,1736224245776,-1537.17,0.00019178,2]
[347936450,1736224245785,-1537.17,0.00019178,2]
[347936452,1736224245795,-1537.17,0.00019178,2]
[347936454,1736224245804,-1537.17,0.00019178,2]
[347936456,1736224245813,-500.0,0.00019178,2]
[347936458,1736224245823,-1537.31,0.00019178,2]
[347936460,1736224245831,-5019.07,0.00019178,2]
[347936462,1736224245842,-500.0,0.00019178,2]
[347936464,1736224245851,-500.0,0.00019178,2]
[347936466,1736224245860,-500.0,0.00019178,2]
[347936468,1736224245869,-505.26231084,0.00019178,2]
[347936469,1736224245878,-500.0,0.00019178,2]
[347936471,1736224245889,-17080.94,0.00019178,2]
[347936473,1736224245898,-1733.59,0.00019178,2]
[347936475,1736224245907,-503.55303386,0.00019178,2]
[347936476,1736224245917,-151.0,0.00019178,2]
[347936478,1736224245927,-502.79598539,0.00019178,2]
[347936480,1736224245936,-1032.23,0.00019178,2]
[347936481,1736224245945,-272.308039,0.00019178,2]
[347936483,1736224245954,-151.0,0.00019178,2]
[347936485,1736224245963,-500.0,0.00019178,2]
[347936486,1736224245972,-151.0,0.00019178,2]
[347936488,1736224245982,-151.0,0.00019178,2]
[347936490,1736224245991,-151.0,0.00019178,2]
[347936492,1736224246000,-151.0,0.00019178,2]
[347936493,1736224246009,-151.0,0.00019178,2]
[347936495,1736224246018,-285.88014,0.00019178,2]
[347936497,1736224246027,-500.0,0.00019178,2]
[347936499,1736224246037,-500.0,0.00019178,2]
[347936500,1736224246046,-500.0,0.00019178,2]
[347936502,1736224246056,-500.0,0.00019178,2]
[347936504,1736224246065,-502.12768585,0.00019178,2]
[347936505,1736224246075,-500.0,0.00019178,2]
[347936507,1736224246085,-519.07,0.00019178,2]
[347936509,1736224246095,-1000.0,0.00019178,7]
[347936511,1736224246104,-500.0,0.00019178,2]
[347936513,1736224246113,-349.7103288,0.00019178,2]
[347936514,1736224246122,-500.0,0.00019178,2]
[347936516,1736224246132,-500.0,0.00019178,2]
[347936518,1736224246142,-151.0,0.00019178,2]
[347936520,1736224246151,-151.0,0.00019178,2]
[347936521,1736224246160,-151.0,0.00019178,2]
[347936523,1736224246169,-151.0,0.00019178,2]
[347936525,1736224246179,-739.16,0.00019178,2]
[347936527,1736224246188,-1455.37,0.00019178,2]
[347936528,1736224246197,-500.0,0.00019178,2]
[347936530,1736224246206,-151.0,0.00019178,2]
[347936532,1736224246214,-151.0,0.00019178,2]
[347936534,1736224246223,-174.990468,0.00019178,2]
[347936535,1736224246233,-505.60977932,0.00019178,2]
[347936537,1736224246242,-500.0,0.00019178,2]
[347936539,1736224246251,-504.46743757,0.00019178,2]
[347936540,1736224246259,-500.0,0.00019178,2]
[347936542,1736224246268,-503.66063256,0.00019178,2]
[347936544,1736224246277,-500.0,0.00019178,2]
[347936546,1736224246286,-500.0,0.00019178,2]
[347936547,1736224246294,-500.0,0.00019178,2]
[347936549,1736224246303,-500.0,0.00019178,2]
[347936551,1736224246312,-500.0,0.00019178,2]
[347936553,1736224246321,-694.11,0.00019178,2]
[347936554,1736224246329,-500.0,0.00019178,2]
[347936556,1736224246338,-500.0,0.00019178,2]
[347936558,1736224246347,-712.4,0.00019178,2]
[347936559,1736224246356,-500.0,0.00019178,2]
[347936561,1736224246365,-697.03,0.00019178,2]
[347936563,1736224246374,-500.0,0.00019178,2]
[347936564,1736224246384,-589.52,0.00019178,2]
[347936566,1736224246393,-504.17524677,0.00019178,2]
[347936568,1736224246402,-500.0,0.00019178,2]
[347936570,1736224246411,-502.13523771,0.00019178,2]
[347936572,1736224246420,-585.79,0.00019178,2]
[347936574,1736224246430,-500.0,0.00019178,2]
[347936575,1736224246439,-832.5,0.00019178,2]
[347936577,1736224246448,-500.0,0.00019178,2]
[347936579,1736224246457,-157.71323284,0.00019178,2]
[347936581,1736224246466,-500.0,0.00019178,2]
[347936583,1736224246475,-167.46744,0.00019178,2]
[347936584,1736224246484,-151.0,0.000192,2]
[347936586,1736224246494,-151.0,0.000193,2]
[347936588,1736224246504,-151.0,0.000193,2]
[347936590,1736224246514,-6742.90446513,0.00019348,2]
[347936592,1736224246526,-153.6911881,0.00019397,2]
[347936594,1736224246535,-151.0,0.000194,2]
[347936596,1736224246544,-673.392999,0.00019451,2]
[347936597,1736224246553,-253.103766,0.00019451,2]
[347936599,1736224246562,-253.103766,0.00019451,2]
[347936601,1736224246571,-195.032069,0.00019452,2]
[347936603,1736224246580,-195.032069,0.00019452,2]
[347936605,1736224246588,-195.032069,0.00019452,2]
[347936606,1736224246599,-195.032069,0.00019452,2]
[347936608,1736224246608,-151.0,0.00019452,2]
[347936610,1736224246617,-151.0,0.00019452,2]
[347936612,1736224246627,-324.572638,0.00019452,2]
[347936613,1736224246636,-324.572638,0.00019452,2]
[347936615,1736224246645,-324.572638,0.00019452,2]
[347936617,1736224246655,-324.572638,0.00019452,2]
[347936618,1736224246664,-296.564587,0.00019452,2]
[347936620,1736224246673,-296.564587,0.00019452,2]
[347936622,1736224246683,-296.564587,0.00019452,2]
[347936624,1736224246692,-296.564587,0.00019452,2]
[347936626,1736224246701,-155.307808,0.00019452,2]
[347936627,1736224246710,-1037.344465,0.00019452,2]
[347936629,1736224246719,-1037.344465,0.00019452,2]
[347936631,1736224246728,-1037.344465,0.00019452,2]
[347936633,1736224246738,-151.0,0.00019452,2]
[347936635,1736224246749,-1037.344465,0.00019452,2]
[347936637,1736224246758,-151.0,0.00019452,2]
[347936638,1736224246767,-151.626861,0.00019452,2]
[347936640,1736224246776,-662.91936,0.00019452,2]
[347936642,1736224246785,-662.91936,0.00019452,2]
[347936644,1736224246794,-662.91936,0.00019452,2]
[347936645,1736224246803,-662.91936,0.00019452,2]
[347936647,1736224246812,-179.353558,0.00019452,2]
[347936649,1736224246821,-179.353558,0.00019452,2]
[347936651,1736224246829,-413.436015,0.00019452,2]
[347936653,1736224246839,-413.436015,0.00019452,2]
[347936654,1736224246848,-413.436015,0.00019452,2]
[347936656,1736224246857,-413.436015,0.00019452,2]
[347936658,1736224246866,-188.965576,0.00019452,2]
[347936660,1736224246875,-188.965576,0.00019452,2]
[347936662,1736224246889,-188.965576,0.00019452,2]
[347936664,1736224246899,-188.965576,0.00019452,2]
[347936665,1736224246907,-12.23344039,0.00019452,2]
[347937099,1736224936110,291.6115,0.00013973,2]
[347937100,1736225141130,-289.10048607,0.00016434,2]
[347937102,1736225240122,-5000.0,0.0001636,2]
[347937103,1736225240145,-300.0,0.00016525,2]
[347937104,1736225240166,-1546.0312017,0.00016526,2]
[347937105,1736225288167,1000.0,0.00025,120]
[347937106,1736225311313,1000.0,0.00025,120]
[347937107,1736225353156,-1090.98608353,0.00016196,2]
[347937108,1736225353179,-21209.6445147,0.00016526,2]
[347937109,1736225353200,-494.405452,0.00016541,2]
[347937110,1736225353221,-1352.1177537,0.000166,2]
[347937111,1736225353241,-4046.20738511,0.00017462,2]
[347937112,1736225353262,-24900.0,0.00017462,2]
[347937113,1736225353282,-171.82898256,0.00017465,2]
[347937114,1736225353303,-195.7024162,0.00017565,2]
[347937115,1736225353324,-922.5629042,0.00017677,2]
[347937116,1736225353345,-5794.42578956,0.00017833,2]
[347937117,1736225357092,-490.0,0.00017833,2]
[347937118,1736225362102,-532.30685424,0.00017833,2]
[347937119,1736225362123,-183.81834576,0.0001789,2]
[347937120,1736225403146,208.04290424,0.00014004,2]
[347937155,1736225432756,-37.22892844,0.0001789,2]
[347937157,1736225432766,-300.0,0.00018198,2]
[347937159,1736225432775,-4944.79660782,0.000182,2]
[347937161,1736225432784,-4944.79660776,0.000182,2]
[347937163,1736225432793,-4244.9781936,0.00018249,2]
[347937165,1736225432803,-4944.79660776,0.00018314,2]
[347937167,1736225432812,-462.898,0.0001848,2]
[347937169,1736225432821,-4944.79660776,0.00018521,2]
[347937171,1736225432830,-255.209534,0.00018521,2]
[347937173,1736225432839,-255.209534,0.00018521,2]
[347937175,1736225432848,-332.293283,0.00018521,2]
[347937177,1736225432857,-332.293283,0.00018521,2]
[347937179,1736225432867,-161.418203,0.00018521,2]
[347937181,1736225432876,-161.418203,0.00018521,2]
[347937183,1736225432885,-171.82898255,0.00018586,2]
[347937185,1736225432899,-154.28,0.000186,2]
[347937187,1736225432908,-4944.79660776,0.00018728,2]
[347937189,1736225432918,-151.0,0.00018859,2]
[347937191,1736225432927,-151.0,0.00018859,2]
[347937193,1736225432937,-803.46088093,0.000189,2]
[347937195,1736225432946,-4944.79660776,0.00018934,2]
[347937197,1736225432956,-255.209534,0.00018935,2]
[347937199,1736225432965,-255.209534,0.00018935,2]
[347937200,1736225432975,-332.293283,0.00018935,2]
[347937201,1736225432985,-332.293283,0.00018935,2]
[347937203,1736225432995,-161.418203,0.00018935,2]
[347937204,1736225433004,-161.418203,0.00018935,2]
[347937205,1736225433014,-234.967,0.00018999,2]
[347937207,1736225433023,-244.23899282,0.00018999,2]
[347937208,1736225433032,-440.99490403,0.00018999,2]
[347937209,1736225433042,-163.42307039,0.00018999,2]
[347937210,1736225433051,-500.0,0.00018999,2]
[347937211,1736225433061,-500.0,0.00018999,2]
[347937212,1736225433070,-410.63168222,0.00018999,2]
[347937214,1736225433080,-500.0,0.00018999,2]
[347937215,1736225433089,-151.0,0.00019,2]
[347937216,1736225433099,-332.293283,0.00019,2]
[347937217,1736225433109,-332.293283,0.00019,2]
[347937218,1736225433120,-503.523258,0.00019,2]
[347937219,1736225433129,-302.84859387,0.00019,2]
[347937220,1736225433139,-17539.18879864,0.00019,2]
[347937221,1736225433158,-500.0,0.00018999,2]
[347937222,1736225433169,-7273.00243271,0.00019,2]
[347937223,1736225433182,-42809.61661432,0.00019,2]
[347937224,1736225433194,-349274.19215433,0.00019,2]
[347937225,1736225433204,-4944.79660776,0.00019141,2]
[347937226,1736225433215,-501.02373964,0.00019173,2]
[347937227,1736225433225,-500.0,0.00019173,2]
[347937228,1736225433235,-10183.89026205,0.00019178,2]
[347937229,1736225433245,-96342.8922287,0.00019178,2]
[347937230,1736225433254,-255.209534,0.00019178,2]
[347937231,1736225433264,-255.209534,0.00019178,2]
[347937232,1736225433273,-255.209534,0.00019178,2]
[347937233,1736225433284,-255.209534,0.00019178,2]
[347937234,1736225433294,-255.209534,0.00019178,2]
[347937235,1736225433304,-255.209534,0.00019178,2]
[347937236,1736225433314,-255.209534,0.00019178,2]
[347937237,1736225433324,-255.209534,0.00019178,2]
[347937238,1736225433333,-255.209534,0.00019178,2]
[347937239,1736225433343,-255.209534,0.00019178,2]
[347937240,1736225433353,-255.209534,0.00019178,2]
[347937241,1736225433362,-255.209534,0.00019178,2]
[347937242,1736225433372,-255.209534,0.00019178,2]
[347937243,1736225433381,-359.17135042,0.00019178,2]
[347937244,1736225433391,-255.209534,0.00019178,2]
[347937245,1736225433400,-255.209534,0.00019178,2]
[347937246,1736225433410,-255.209541,0.00019178,2]
[347937247,1736225433421,-502.06846376,0.00019178,2]
[347937248,1736225433431,-332.293283,0.00019178,2]
[347937249,1736225433442,-332.293283,0.00019178,2]
[347937250,1736225433452,-332.293283,0.00019178,2]
[347937251,1736225433462,-332.293283,0.00019178,2]
[347937252,1736225433472,-332.293283,0.00019178,2]
[347937253,1736225433483,-332.293283,0.00019178,2]
[347937254,1736225433493,-332.293283,0.00019178,2]
[347937255,1736225433504,-332.293283,0.00019178,2]
[347937256,1736225433514,-332.293283,0.00019178,2]
[347937257,1736225433524,-332.293283,0.00019178,2]
[347937258,1736225433534,-332.293283,0.00019178,2]
[347937259,1736225433544,-332.293283,0.00019178,2]
[347937260,1736225433554,-332.293283,0.00019178,2]
[347937261,1736225433563,-332.293283,0.00019178,2]
[347937262,1736225433573,-151.0,0.00019178,2]
[347937263,1736225433583,-151.0,0.00019178,2]
[347937264,1736225433594,-151.0,0.00019178,2]
[347937265,1736225433603,-151.0,0.00019178,2]
[347937266,1736225433613,-151.0,0.00019178,2]
[347937267,1736225433623,-151.0,0.00019178,2]
[347937268,1736225433633,-151.0,0.00019178,2]
[347937269,1736225433642,-151.0,0.00019178,2]
[347937270,1736225433652,-151.0,0.00019178,2]
[347937271,1736225433663,-151.0,0.00019178,2]
[347937272,1736225433673,-151.0,0.00019178,2]
[347937273,1736225433683,-151.0,0.00019178,2]
[347937274,1736225433693,-151.0,0.00019178,2]
[347937275,1736225433702,-251.362713,0.00019178,2]
[347937276,1736225433710,-505.68426909,0.00019178,2]
[347937277,1736225433720,-161.418203,0.00019178,2]
[347937278,1736225433730,-161.418203,0.00019178,2]
[347937279,1736225433739,-104.72189106,0.00019178,2]
[347937315,1736225438527,-500.0,0.00018999,2]
[347937317,1736225438537,-500.0,0.00018999,2]
[347937319,1736225438546,-158.12605297,0.00018999,2]
[347937320,1736225438555,-500.0,0.00019178,2]
[347937322,1736225438564,-2.79252736,0.00019178,2]
[347937324,1736225438575,-497.20747264,0.00019178,2]
[347937326,1736225438585,-524.33796253,0.00019178,2]
[347937327,1736225438594,-500.0,0.00019178,2]